bitfinex/quotes_SOLUSD_20260305
["timestamp","ask_amount","ask_price","bid_price","bid_amount"]
[1772750887085,0.48720112,89.207,89.161,11.69322318]
[1772750887587,0.48720112,89.207,89.162,0.47763464]
[1772750890183,39.23502902,89.206,89.162,0.47763464]
[1772750890388,0.48720112,89.205,89.162,0.47763464]
[1772750892295,0.48720112,89.203,89.162,0.47763464]
[1772750893394,0.48720112,89.201,89.162,0.47763464]
[1772750894093,0.48720112,89.201,89.164,0.47763464]
[1772750895397,0.48720112,89.199,89.164,0.47763464]
[1772750895579,0.48720112,89.199,89.166,0.47763464]
[1772750897899,0.48720112,89.197,89.166,0.47763464]
[1772750900803,0.48720112,89.195,89.166,0.47763464]
[1772750902093,0.48720112,89.195,89.167,11.21491134]
[1772750902296,0.48720112,89.195,89.168,0.47763464]
[1772750904020,0.48720112,89.193,89.168,0.47763464]
[1772750905314,0.48720112,89.193,89.17,0.47763464]
[1772750905612,0.48720112,89.206,89.17,0.47763464]
[1772750906296,0.48720112,89.204,89.172,0.47763464]
[1772750907918,0.48720112,89.208,89.173,0.47763464]
[1772750908913,0.48720112,89.208,89.176,0.47406904]
[1772750909112,0.48720112,89.208,89.177,0.47406904]
[1772750909902,0.46437982,89.212,89.177,0.47406904]
[1772750912934,0.46437982,89.212,89.179,0.49613054]
[1772750914119,0.46437982,89.21,89.179,0.49613054]
[1772750915202,0.46437982,89.21,89.181,0.49613054]
[1772750917614,0.46437982,89.21,89.183,0.49613054]
[1772750919319,0.46437982,89.214,89.183,0.49613054]
[1772750919523,0.46437982,89.214,89.185,0.49613054]
[1772750921826,11.67343691,89.214,89.186,11.21252214]
[1772750922034,0.46437982,89.213,89.187,0.49613054]
[1772750924918,0.46437982,89.213,89.189,0.49613054]
[1772750925815,0.46437982,89.211,89.189,0.49613054]
[1772750927541,0.46437982,89.211,89.191,0.49613054]
[1772750930117,0.46437982,89.21,89.193,0.49613054]
[1772750931251,0.46437982,89.214,89.193,0.49613054]
[1772750931918,0.46437982,89.213,89.193,0.49613054]
[1772750932919,0.46437982,89.213,89.195,0.49613054]
[1772750939432,0.46437982,89.211,89.195,0.49613054]
[1772750941956,0.46437982,89.211,89.19,0.49875656]
[1772750944055,0.46437982,89.211,89.192,0.49875656]
[1772750945947,0.46437982,89.211,89.194,0.49875656]
[1772750946851,0.50303287,89.215,89.194,0.49875656]
[1772750948863,0.50303287,89.215,89.195,11.21139077]
[1772750949047,0.50303287,89.215,89.196,0.49875656]
[1772750950973,0.50303287,89.213,89.196,0.49875656]
[1772750953562,0.50303287,89.213,89.198,0.49875656]
[1772750958862,0.50303287,89.211,89.193,0.49875656]
[1772750960854,0.50303287,89.215,89.195,0.49875656]
[1772750964253,0.50303287,89.213,89.195,0.49875656]
[1772750965989,0.50303287,89.213,89.196,0.49875656]
[1772750967978,0.50303287,89.211,89.196,0.49875656]
[1772750968776,11.67729422,89.216,89.196,0.49875656]
[1772750968979,0.46844589,89.215,89.196,0.49875656]
[1772750975075,0.46844589,89.215,89.198,0.46931018]
[1772750979897,0.46844589,89.215,89.199,11.21088801]
[1772750980100,0.46844589,89.215,89.2,0.46931018]
[1772750980693,0.46844589,89.215,89.199,11.21088801]
[1772750980884,0.46844589,89.215,89.196,0.46931018]
[1772750981803,0.45913523,89.225,89.196,0.46931018]
[1772750981988,0.45913523,89.229,89.196,0.46931018]
[1772750982502,0.45913523,89.227,89.196,0.46931018]
[1772750991911,0.45913523,89.227,89.181,0.28432314]
[1772750991912,11.20749557,89.226,89.197,11.21113938]
[1772750992100,0.45913523,89.225,89.188,11.2122707]
[1772750992290,0.45913523,89.225,89.184,11.68206446]
[1772750992615,0.45913523,89.225,89.185,0.46931018]
[1772750993802,0.45913523,89.223,89.187,0.46931018]
[1772750996216,0.45913523,89.221,89.189,0.46931018]
[1772751000019,0.46384386,89.219,89.191,0.48086361]
[1772751002298,0.46384386,89.217,89.193,0.48086361]
[1772751005902,0.46384386,89.215,89.193,0.48086361]
[1772751009027,0.46384386,89.213,89.193,0.48086361]
[1772751009428,0.46384386,89.213,89.195,0.48086361]
[1772751012930,0.46384386,89.212,89.195,0.48086361]
[1772751015131,11.20938,89.211,89.195,0.48086361]
[1772751016015,11.67322386,89.211,89.195,0.48086361]
[1772751016511,0.46384386,89.21,89.195,0.48086361]
[1772751021119,11.20963131,89.209,89.195,0.48086361]
[1772751021540,0.46384386,89.208,89.195,0.48086361]
[1772751024360,0.46384386,89.212,89.195,0.48086361]
[1772751025152,0.28432314,89.242,89.197,0.48086361]
[1772751026649,0.28432314,89.24,89.197,0.48086361]
[1772751027254,0.46384386,89.239,89.197,0.48086361]
[1772751029853,39.22095968,89.238,89.197,0.48086361]
[1772751030151,0.45309689,89.237,89.197,0.48086361]
[1772751031852,0.45309689,89.237,89.198,0.45616509]
[1772751032044,0.45309689,89.235,89.198,0.45616509]
[1772751034248,0.45309689,89.233,89.198,0.45616509]
[1772751036949,0.45309689,89.231,89.198,0.45616509]
[1772751040665,0.45309689,89.229,89.198,0.45616509]
[1772751045267,0.45309689,89.227,89.198,0.45616509]
[1772751049670,11.20749557,89.226,89.198,0.45616509]
[1772751049851,0.45309689,89.225,89.198,0.45616509]
[1772751051777,11.20774679,89.224,89.198,0.45616509]
[1772751051946,0.45309689,89.223,89.198,0.45616509]
[1772751061675,0.46326871,89.221,89.2,0.46982026]
[1772751063054,11.20799802,89.222,89.2,0.46982026]
[1772751063652,0.46326871,89.222,89.2,0.46982026]
[1772751065954,11.20812364,89.221,89.2,0.46982026]
[1772751066181,0.46326871,89.22,89.2,0.46982026]
[1772751068582,0.46326871,89.218,89.2,0.46982026]
[1772751069679,11.20674197,89.232,89.2,0.46982026]
[1772751069886,11.20674197,89.232,89.202,0.46982026]
[1772751071770,11.20699316,89.23,89.203,11.2103853]
[1772751071965,11.20699316,89.23,89.204,0.46982026]
[1772751073787,0.30701035,89.23,89.206,0.46982026]
[1772751074983,11.20711876,89.229,89.206,0.46982026]
[1772751075366,11.20711876,89.229,89.208,0.46982026]
[1772751076765,11.20649079,89.234,89.208,0.46982026]
[1772751077263,11.20649079,89.234,89.209,11.20963131]
[1772751077458,11.20649079,89.234,89.21,0.46982026]
[1772751078689,0.30876625,89.234,89.21,0.46982026]
[1772751080882,11.20661638,89.233,89.21,0.46982026]
[1772751084478,0.3107302,89.233,89.21,0.46982026]
[1772751088779,11.20674197,89.232,89.211,11.20938]
[1772751089087,11.20674197,89.232,89.212,0.4594876]
[1772751089300,0.31227732,89.241,89.213,0.4594876]
[1772751089475,39.22008067,89.24,89.213,0.4594876]
[1772751089909,0.31286559,89.239,89.213,0.4594876]
[1772751090309,0.31315833,89.243,89.213,0.4594876]
[1772751090603,0.31315833,89.251,89.213,0.4594876]
[1772751090803,11.20423071,89.252,89.215,0.50534075]
[1772751091310,49.14117634,89.29,89.215,0.50534075]
[1772751091311,0.31344355,89.26,89.215,0.50534075]
[1772751092809,0.31344355,89.26,89.217,0.50534075]
[1772751094081,11.20335204,89.259,89.217,0.50534075]
[1772751094297,0.31400658,89.258,89.217,0.50534075]
[1772751095093,0.31400658,89.258,89.218,39.22975183]
[1772751095303,0.31400658,89.258,89.219,0.50534075]
[1772751096089,0.31455919,89.269,89.219,0.50534075]
[1772751096285,0.31482902,89.268,89.219,0.50534075]
[1772751100713,0.31588846,89.266,89.221,0.50534075]
[1772751108119,0.31761823,89.264,89.223,0.50534075]
[1772751110220,0.31808866,89.262,89.225,0.50534075]
[1772751112618,0.31877923,89.26,89.227,0.50534075]
[1772751116923,11.20335204,89.259,89.228,11.20724436]
[1772751117125,0.31964435,89.258,89.229,0.50534075]
[1772751120022,11.52407938,89.257,89.231,0.49112492]
[1772751120323,0.32067617,89.256,89.231,0.49112492]
[1772751122015,0.32087357,89.254,89.227,0.49112492]
[1772751122213,0.32087357,89.254,89.212,0.49112492]
[1772751122612,0.32087357,89.254,89.215,0.49112492]
[1772751124522,0.32146479,89.252,89.217,0.49112492]
[1772751128820,0.32221589,89.25,89.219,0.49112492]
[1772751131153,0.32258002,89.248,89.221,0.49112492]
[1772751131926,0.32276062,89.246,89.222,11.20799802]
[1772751134543,0.32276062,89.246,89.195,0.28432314]
[1772751134544,11.52839731,89.245,89.223,0.49112492]
[1772751134930,0.32328779,89.244,89.223,0.49112492]
[1772751137926,0.32328779,89.244,89.223,11.69894721]
[1772751138141,11.20536064,89.243,89.224,0.49112492]
[1772751138444,0.32380196,89.242,89.224,0.49112492]
[1772751141328,0.32445787,89.241,89.224,0.49112492]
[1772751141750,11.20448179,89.25,89.224,0.49112492]
[1772751142345,11.20448179,89.25,89.225,11.20762118]
[1772751142545,11.20448179,89.25,89.226,0.51500268]
[1772751144027,0.28432314,89.271,89.226,0.51500268]
[1772751148864,0.28432314,89.269,89.226,0.51500268]
[1772751152960,0.28432314,89.271,89.226,0.51500268]
[1772751153144,39.20777882,89.268,89.226,0.51500268]
[1772751153461,39.20777882,89.268,89.227,0.51500268]
[1772751162763,39.20777882,89.268,89.229,0.51500268]
[1772751170174,39.20777882,89.268,89.232,0.51500268]
[1772751172066,0.28432314,89.285,89.234,0.51500268]
[1772751173168,39.19987456,89.286,89.234,0.51500268]
[1772751174182,0.1,89.29,89.236,0.51500268]
[1772751176767,0.1,89.29,89.238,0.51500268]
[1772751179183,0.1,89.29,89.24,0.51500268]
[1772751183373,0.1,89.29,89.245,0.51500268]
[1772751183580,0.1,89.29,89.247,0.51500268]
[1772751186494,0.1,89.29,89.248,11.20473287]
[1772751186673,0.1,89.29,89.249,0.51500268]
[1772751189088,0.1,89.29,89.251,0.51500268]
[1772751190695,0.1,89.29,89.253,0.51500268]
[1772751191219,0.1,89.29,89.254,0.51500268]
[1772751191395,0.1,89.3,89.257,0.51500268]
[1772751192581,0.1,89.3,89.26,0.51500268]
[1772751193795,0.1,89.3,89.263,0.51500268]
[1772751194815,0.1,89.3,89.265,0.51500268]
[1772751195111,0.1,89.31,89.269,0.47227383]
[1772751195311,0.1,89.32,89.275,0.47227383]
[1772751195612,0.1,89.33,89.284,5.29704952]
[1772751195782,0.1,89.33,89.285,0.47227383]
[1772751196901,0.1,89.33,89.288,0.47227383]
[1772751198003,0.1,89.33,89.29,0.47227383]
[1772751198588,0.1,89.33,89.292,0.47227383]
[1772751198997,0.1,89.33,89.294,0.47227383]
[1772751199197,0.1,89.33,89.296,0.47227383]
[1772751199505,0.1,89.33,89.297,0.47227383]
[1772751199801,0.1,89.33,89.298,0.47227383]
[1772751199983,0.1,89.33,89.3,0.47227383]
[1772751200184,0.1,89.33,89.302,0.47227383]
[1772751200378,0.1,89.33,89.303,0.47227383]
[1772751200689,0.1,89.33,89.304,0.47227383]
[1772751200892,0.1,89.33,89.305,0.47227383]
[1772751201195,0.1,89.33,89.306,0.47227383]
[1772751201497,0.1,89.33,89.307,0.47227383]
[1772751201698,0.1,89.34,89.308,0.47227383]
[1772751201897,11.1922747,89.348,89.31,39.66161432]
[1772751202096,0.1,89.35,89.314,0.47227383]
[1772751202299,0.1,89.35,89.316,0.47227383]
[1772751202483,0.1,89.35,89.317,0.47227383]
[1772751202809,0.1,89.35,89.318,0.47227383]
[1772751203002,11.29194216,89.35,89.319,0.47227383]
[1772751203304,0.1,89.35,89.32,0.47227383]
[1772751203603,11.18956237,89.369,89.322,0.47227383]
[1772751204101,11.18831045,89.379,89.327,0.47227383]
[1772751204301,11.18831045,89.379,89.33,4.82477569]
[1772751204604,11.18831045,89.379,89.336,0.47227383]
[1772751204908,0.1,89.38,89.338,0.47227383]
[1772751205110,0.1,89.38,89.339,0.47227383]
[1772751205285,0.1,89.38,89.34,0.47227383]
[1772751205486,0.1,89.38,89.341,0.47227383]
[1772751205694,0.1,89.38,89.342,0.47227383]
[1772751206010,0.1,89.38,89.345,0.47227383]
[1772751206246,0.1,89.38,89.347,0.47227383]
[1772751206390,0.1,89.38,89.348,0.47227383]
[1772751206591,0.1,89.38,89.349,0.47227383]
[1772751206806,0.1,89.38,89.35,0.47227383]
[1772751207007,0.1,89.38,89.351,0.47227383]
[1772751207200,0.1,89.38,89.352,0.47227383]
[1772751207512,0.1,89.38,89.353,0.47227383]
[1772751207713,0.1,89.38,89.354,0.47227383]
[1772751208012,0.1,89.38,89.355,0.47227383]
[1772751208187,0.1,89.38,89.357,0.47227383]
[1772751208905,0.1,89.38,89.359,0.47227383]
[1772751209100,0.1,89.38,89.36,0.50969007]
[1772751209286,0.31108203,89.39,89.361,0.50969007]
[1772751209489,0.31108203,89.39,89.362,0.50969007]
[1772751209688,0.31108203,89.39,89.363,0.50969007]
[1772751209914,11.18705881,89.389,89.364,0.49358298]
[1772751210102,0.3113013,89.389,89.366,0.49358298]
[1772751210808,0.31136981,89.415,89.366,0.49358298]
[1772751212898,0.31151481,89.413,89.368,0.49358298]
[1772751213513,0.31158026,89.409,89.363,1.19820439]
[1772751213699,0.31158026,89.408,89.363,1.19820439]
[1772751214094,0.31158026,89.408,89.355,0.49358298]
[1772751214913,0.3116539,89.406,89.355,0.49358298]
[1772751216223,0.31172638,89.404,89.355,0.49358298]
[1772751216521,0.31172638,89.404,89.356,11.19119029]
[1772751216720,0.31172638,89.404,89.356,0.49358298]
[1772751217901,0.3118699,89.402,89.356,0.49358298]
[1772751221017,55.92528382,89.405,89.356,0.49358298]
[1772751221018,0.31206682,89.4,89.357,0.49358298]
[1772751225018,0.31231432,89.398,89.358,11.19093981]
[1772751225220,0.31231432,89.398,89.359,0.49358298]
[1772751227728,39.15120193,89.397,89.359,0.49358298]
[1772751228023,0.31248887,89.396,89.359,0.49358298]
[1772751230228,0.50365529,89.393,89.307,1.11973305]
[1772751230412,0.50365529,89.388,89.304,4.96693726]
[1772751230612,0.50365529,89.388,89.308,27.99301294]
[1772751230810,0.50365529,89.378,89.312,0.28432314]
[1772751231028,0.50365529,89.378,89.313,1.01528453]
[1772751232316,0.50365529,89.375,89.316,0.49358298]
[1772751233521,0.50365529,89.372,89.316,0.49358298]
[1772751235031,0.50365529,89.372,89.317,11.19607689]
[1772751235233,0.50365529,89.372,89.318,0.49358298]
[1772751235531,0.50365529,89.369,89.32,0.49358298]
[1772751237028,39.16390653,89.368,89.32,0.49358298]
[1772751237332,0.50365529,89.367,89.32,0.49358298]
[1772751238214,0.50365529,89.365,89.32,0.49358298]
[1772751242943,0.28432314,89.363,89.32,0.49358298]
[1772751243230,0.48640922,89.362,89.309,0.96170507]
[1772751243437,0.48640922,89.362,89.304,11.19760044]
[1772751243935,0.48640922,89.358,89.304,11.19760044]
[1772751244931,0.48640922,89.356,89.294,11.19896073]
[1772751245111,0.48640922,89.356,89.295,0.48804046]
[1772751246530,0.48640922,89.356,89.296,0.96184508]
[1772751246732,0.48640922,89.356,89.297,0.48804046]
[1772751248233,0.48640922,89.353,89.299,0.48804046]
[1772751248414,0.48640922,89.348,89.299,0.48804046]
[1772751250738,0.48640922,89.346,89.299,0.48804046]
[1772751251041,0.48640922,89.338,89.288,0.65542813]
[1772751251827,0.48640922,89.338,89.289,0.48804046]
[1772751252933,0.48640922,89.335,89.289,0.48804046]
[1772751253232,0.48640922,89.335,89.288,0.65542813]
[1772751254233,0.48640922,89.328,89.282,0.48804046]
[1772751254437,0.48640922,89.328,89.255,0.48804046]
[1772751254941,0.48640922,89.325,89.257,0.48804046]
[1772751258244,0.48640922,89.322,89.259,0.48804046]
[1772751263246,0.48640922,89.319,89.261,0.48804046]
[1772751264335,0.48640922,89.317,89.263,0.48804046]
[1772751265528,0.48640922,89.314,89.263,0.48804046]
[1772751267545,0.48640922,89.312,89.263,0.48804046]
[1772751267752,0.48640922,89.311,89.263,0.48804046]
[1772751269954,0.51249286,89.308,89.263,0.48804046]
[1772751271147,0.51249286,89.308,89.252,0.48753645]
[1772751273956,0.51249286,89.305,89.253,0.48753645]
[1772751276040,0.28432314,89.303,89.253,0.48753645]
[1772751276242,0.51249286,89.302,89.253,0.48753645]
[1772751278640,0.51249286,89.299,89.253,0.48753645]
[1772751280758,0.51249286,89.297,89.253,0.48753645]
[1772751282160,0.51249286,89.295,89.253,0.48753645]
[1772751284149,0.51249286,89.293,89.253,0.48753645]
[1772751285547,0.51249286,89.291,89.253,0.48753645]
[1772751286055,0.51249286,89.29,89.253,0.48753645]
[1772751286263,0.51249286,89.288,89.232,0.48753645]
[1772751286455,0.51249286,89.288,89.233,0.48753645]
[1772751287558,0.28432314,89.286,89.233,0.48753645]
[1772751287754,0.51249286,89.285,89.233,0.48753645]
[1772751289869,0.51249286,89.282,89.233,0.48753645]
[1772751292070,95.20182787,89.284,89.233,0.48753645]
[1772751292071,0.51249286,89.279,89.233,0.48753645]
[1772751294176,0.51249286,89.277,89.233,0.48753645]
[1772751297485,0.51249286,89.274,89.233,0.48753645]
[1772751297680,0.51249286,89.274,89.218,0.48753645]
[1772751299162,4.20632688,89.269,89.218,0.48753645]
[1772751299466,0.51249286,89.256,89.182,0.14216157]
[1772751299664,0.51249286,89.256,89.193,11.21159513]
[1772751300261,0.4967677,89.249,89.17,28.03602556]
[1772751300464,0.4967677,89.246,89.171,11.21440827]
[1772751300670,0.4967677,89.245,89.171,11.21440827]
[1772751300874,0.78109084,89.229,89.16,0.2]
[1772751301166,0.4967677,89.228,89.16,0.2]
[1772751301379,0.4967677,89.228,89.163,0.33693407]
[1772751301681,0.4967677,89.225,89.165,0.33693407]
[1772751302964,0.4967677,89.222,89.165,0.33693407]
[1772751304179,0.4967677,89.219,89.165,0.33693407]
[1772751306068,0.4967677,89.217,89.165,0.33693407]
[1772751310388,0.4967677,89.214,89.165,0.33693407]
[1772751312177,0.4967677,89.211,89.165,0.33693407]
[1772751313682,0.4967677,89.211,89.167,0.34127823]
[1772751315420,0.4967677,89.208,89.167,0.34127823]
[1772751319118,39.23458921,89.207,89.169,0.3429369]
[1772751319504,56.03307018,89.234,89.169,0.3429369]
[1772751319505,11.20850052,89.218,89.169,0.3429369]
[1772751319695,39.72651953,89.218,89.169,0.3429369]
[1772751319896,0.4967677,89.217,89.169,0.3429369]
[1772751320523,39.22975183,89.218,89.169,0.3429369]
[1772751321421,0.4967677,89.219,89.171,0.34387583]
[1772751324305,0.4967677,89.217,89.173,0.34447667]
[1772751326713,0.4967677,89.227,89.175,0.34536097]
[1772751328812,0.4967677,89.225,89.177,0.34593168]
[1772751330224,0.52082621,89.223,89.179,0.34676467]
[1772751332526,0.52082621,89.221,89.181,0.34756723]
[1772751333319,11.20799802,89.222,89.181,0.34756723]
[1772751333520,0.52082621,89.236,89.184,0.34782986]
[1772751333820,11.72643798,89.241,89.188,0.28432314]
[1772751334015,11.72643798,89.241,89.189,0.34782986]
[1772751334838,11.72643798,89.241,89.192,0.34809348]
[1772751335034,11.20561177,89.241,89.192,0.34809348]
[1772751335240,0.52082621,89.25,89.198,0.34834629]
[1772751335442,11.20421151,89.253,89.199,0.34834629]
[1772751336340,11.20421151,89.253,89.204,0.34859371]
[1772751336724,0.52082621,89.261,89.208,0.34859371]
[1772751336927,0.52082621,89.261,89.209,0.34859371]
[1772751337749,0.52082621,89.26,89.209,0.34859371]
[1772751338330,0.52082621,89.26,89.211,0.28432314]
[1772751338532,0.52082621,89.26,89.212,0.34908532]
[1772751339449,11.20335204,89.259,89.212,0.34908532]
[1772751339749,11.72417825,89.259,89.212,0.34908532]
[1772751340649,0.52082621,89.259,89.214,0.34956425]
[1772751341043,0.52082621,89.259,89.216,3.69383402]
[1772751341243,0.52082621,89.259,89.217,0.34956425]
[1772751344940,11.72430376,89.258,89.219,0.35050708]
[1772751345435,11.20347755,89.258,89.219,0.35050708]
[1772751345633,0.52082621,89.257,89.219,0.35050708]
[1772751346845,0.52082621,89.257,89.222,39.22799308]
[1772751347137,0.52082621,89.257,89.223,0.95570349]
[1772751348653,0.54782601,89.261,89.223,1.24002663]
[1772751348955,0.54782601,89.261,89.224,1.00935103]
[1772751349256,0.54782601,89.265,89.225,39.22667413]
[1772751349438,0.54782601,89.265,89.226,1.0093284]
[1772751351653,0.54782601,89.265,89.227,39.22579487]
[1772751351858,0.54782601,89.265,89.228,1.30588142]
[1772751352754,0.54782601,89.265,89.23,3.69383402]
[1772751352937,0.54782601,89.265,89.231,1.30583752]
[1772751355358,0.54782601,89.265,89.232,39.2235969]
[1772751355562,0.54782601,89.265,89.233,1.30580825]
[1772751357265,0.54782601,89.265,89.234,39.22271778]
[1772751357445,0.54782601,89.265,89.234,40.5285114]
[1772751357641,0.54782601,89.27,89.234,40.5285114]
[1772751357862,0.54782601,89.281,89.238,0.28432314]
[1772751359640,0.54782601,89.281,89.24,0.28432314]
[1772751360956,27.99314615,89.308,89.267,0.54908559]
[1772751361152,11.19733055,89.307,89.267,0.54908559]
[1772751361882,27.98971324,89.319,89.269,0.54908559]
[1772751363072,0.54499509,89.318,89.269,0.54908559]
[1772751363363,0.54499509,89.318,89.27,0.54908559]
[1772751365573,0.54499509,89.316,89.272,0.54908559]
[1772751366474,0.54499509,89.316,89.273,0.54908559]
[1772751367753,0.54499509,89.314,89.275,0.54908559]
[1772751369560,0.54499509,89.314,89.277,0.54908559]
[1772751370984,0.54499509,89.314,89.28,0.54908559]
[1772751371677,0.54499509,89.319,89.283,0.54908559]
[1772751372063,0.54499509,89.326,89.283,0.54908559]
[1772751372261,0.54499509,89.332,89.283,0.54908559]
[1772751372469,0.54499509,89.332,89.285,0.54908559]
[1772751373153,0.54499509,89.33,89.275,0.54908559]
[1772751373367,0.54499509,89.33,89.226,44.82979986]
[1772751373368,0.28432314,89.329,89.266,0.54908559]
[1772751373579,0.54499509,89.328,89.266,11.7514634]
[1772751373875,0.54499509,89.326,89.27,11.20196812]
[1772751374077,0.54499509,89.318,89.258,0.54908559]
[1772751374272,0.54499509,89.309,89.273,1.36669675]
[1772751376666,0.54499509,89.307,89.273,1e-08]
[1772751378757,0.54499509,89.305,89.273,1e-08]
[1772751381871,0.54499509,89.303,89.273,1e-08]
[1772751383774,11.19795749,89.302,89.273,1e-08]
[1772751383978,0.54499509,89.301,89.273,1e-08]
[1772751386080,0.54499509,89.299,89.273,1e-08]
[1772751387402,0.54499509,89.297,89.273,1e-08]
[1772751388389,0.54499509,89.297,89.242,3.69383402]
[1772751388585,0.54499509,89.297,89.249,11.20460733]
[1772751390089,0.52689549,89.295,89.249,11.20460733]
[1772751390594,0.52689549,89.295,89.25,0.23335129]
[1772751391676,11.1987099,89.296,89.253,0.28432314]
[1772751391883,11.1987099,89.296,89.254,0.23399776]
[1772751392083,11.72517755,89.3,89.256,0.23399776]
[1772751392679,0.52689549,89.299,89.256,0.23399776]
[1772751392993,11.1963276,89.315,89.262,3.69383402]
[1772751393195,0.52689549,89.314,89.264,0.23463315]
[1772751394282,0.52689549,89.312,89.267,0.23526071]
[1772751396283,0.52689549,89.312,89.269,0.2371099]
[1772751396485,0.52689549,89.316,89.273,0.2371099]
[1772751397495,0.52689549,89.332,89.273,0.2371099]
[1772751398489,0.52689549,89.33,89.279,0.23830801]
[1772751399501,11.19432223,89.331,89.283,0.23889589]
[1772751399686,0.52689549,89.335,89.284,0.23889589]
[1772751399886,0.52689549,89.333,89.284,0.23889589]
[1772751400580,0.52689549,89.333,89.287,0.23947656]
[1772751401198,0.52689549,89.331,89.287,0.23947656]
[1772751404206,0.52689549,89.329,89.29,0.24118116]
[1772751406306,0.52689549,89.327,89.293,0.24282207]
[1772751408403,0.52689549,89.325,89.295,0.24388702]
[1772751411511,0.52689549,89.325,89.297,0.24542453]
[1772751412094,0.52689549,89.323,89.296,11.1987099]
[1772751412296,0.52689549,89.323,89.292,11.44456931]
[1772751412494,0.52689549,89.323,89.292,11.19914478]
[1772751412694,0.52689549,89.323,89.293,0.24592772]
[1772751413790,0.52689549,89.321,89.293,0.24592772]
[1772751414819,0.52689549,89.321,89.294,11.44587432]
[1772751414989,0.52689549,89.321,89.276,11.4480516]
[1772751416447,0.52689549,89.319,89.277,0.2478831]
[1772751418618,0.52689549,89.317,89.277,0.2478831]
[1772751419914,0.52563107,89.315,89.278,11.44966881]
[1772751420425,0.52563107,89.315,89.278,11.20096776]
[1772751420624,0.52563107,89.315,89.278,11.44908355]
[1772751420920,0.52563107,89.315,89.279,0.24811579]
[1772751421117,0.52563107,89.315,89.274,11.20144198]
[1772751421311,0.52563107,89.315,89.275,0.24811579]
[1772751423325,0.52563107,89.313,89.275,0.24811579]
[1772751426405,11.19670369,89.312,89.275,0.24811579]
[1772751426610,0.52563107,89.311,89.27,0.24474199]
[1772751427808,0.52563107,89.309,89.27,0.24474199]
[1772751428727,0.52563107,89.309,89.255,0.24366807]
[1772751431026,0.52563107,89.307,89.255,0.24366807]
[1772751433033,0.52563107,89.305,89.257,0.24159436]
[1772751438417,0.52563107,89.303,89.257,0.24159436]
[1772751440920,39.19197347,89.304,89.257,0.24159436]
[1772751440921,0.52563107,89.301,89.257,0.24159436]
[1772751447043,0.52563107,89.299,89.257,0.24159436]
[1772751449255,0.51449246,89.297,89.257,0.24159436]
[1772751451652,0.50841655,89.295,89.257,0.24159436]
[1772751453056,0.50841655,89.295,89.251,1.78684182]
[1772751453431,0.50841655,89.295,89.204,61.9]
[1772751453432,0.55899067,89.294,89.225,11.20762118]
[1772751453634,0.55899067,89.291,89.224,28.01911358]
[1772751455136,0.55899067,89.288,89.224,28.01911358]
[1772751459461,0.55899067,89.286,89.224,28.01911358]
[1772751461362,0.55899067,89.284,89.217,0.14216157]
[1772751462755,0.55899067,89.282,89.217,0.14216157]
[1772751463540,0.55899067,89.282,89.213,0.28432314]
[1772751463735,0.55899067,89.282,89.213,2.01706034]
[1772751464053,0.55899067,89.28,89.216,0.28432314]
[1772751464251,0.55899067,89.28,89.218,0.28432314]
[1772751466458,4.23836824,89.29,89.219,11.20837489]
[1772751466459,0.55899067,89.277,89.219,11.20837489]
[1772751471368,0.55899067,89.275,89.219,11.20837489]
[1772751471739,0.55899067,89.275,89.217,1.73265951]
[1772751471965,0.55899067,89.268,89.217,1.73265951]
[1772751472276,0.55899067,89.258,89.201,11.21058354]
[1772751472646,0.55899067,89.258,89.186,28.03108709]
[1772751472948,0.55899067,89.248,89.186,28.03108709]
[1772751473571,0.55899067,89.246,89.186,28.03108709]
[1772751476959,0.55899067,89.244,89.181,11.21315078]
[1772751477163,0.55899067,89.243,89.181,11.21315078]
[1772751480068,0.28432314,89.239,89.176,1.65405846]
[1772751480264,0.55899067,89.238,89.176,1.65405846]
[1772751480462,0.55899067,89.228,89.176,1.65405846]
[1772751480667,0.55899067,89.218,89.16,0.2]
[1772751480966,0.55899067,89.199,89.16,1e-08]
[1772751481166,0.55899067,89.198,89.16,1e-08]
[1772751482274,0.55899067,89.196,89.16,1e-08]
[1772751484022,0.55899067,89.188,89.16,1e-08]
[1772751484153,0.55899067,89.179,89.16,1e-08]
[1772751484361,0.55899067,89.179,89.14,0.2]
[1772751484362,0.55899067,89.178,89.14,1e-08]
[1772751485258,0.55899067,89.178,89.141,11.21818243]
[1772751486856,0.55899067,89.176,89.14,1e-08]
[1772751487056,11.21365374,89.177,89.14,1e-08]
[1772751487554,0.55899067,89.2,89.14,1e-08]
[1772751489563,0.55899067,89.198,89.14,1e-08]
[1772751491658,0.55899067,89.196,89.14,1e-08]
[1772751494471,0.55899067,89.194,89.14,0.28432315]
[1772751501389,0.55899067,89.192,89.142,0.28432314]
[1772751504573,0.55899067,89.19,89.143,39.26275759]
[1772751505969,0.55899067,89.19,89.146,3.69383402]
[1772751506192,2.47215037,105.09,89.147,0.14216157]
[1772751506193,0.55899067,89.194,89.147,0.14216157]
[1772751507499,0.55899067,89.194,89.147,39.54531901]